{"text_format":"2","workbook":"xlsx","n_sheets":1,"sheets":["Wettkampfliste"],"not_rendered":{"charts":0,"images":2,"macros":0,"external_links":0,"defined_names":0,"comments":0,"pivot_tables":0},"unopened":[],"bounds":{"document_bytes":16777216,"sheet_cells":100000,"run_cost":"one","rows_first":2000,"rows_last":500,"rows_between":2000,"halvings":0,"cell_chars":16384,"cell_head_chars":4096},"cells_cut":0,"cells_raw":0,"read":"whole","date_system":"1900"}

{"sheet":"Wettkampfliste","index":0,"n_rows":49,"n_cols":12,"rows_kept":49,"cut":false,"hidden":false,"merged":[[0,9,0,10],[1,9,1,10],[2,9,2,10],[3,9,3,10],[4,9,4,10]]}
[{"$f":"IFERROR(__xludf.DUMMYFUNCTION(\"IMPORTRANGE(\"\"https://docs.google.com/spreadsheets/d/1LVt8yu-nHxqXgne2WfdGrh-beLWq27ZuGMit3ZtB1NM/edit?gid=2065695738#gid=2065695738\"\",\"\"Wettkampfliste!A1:M50\"\")\"),\"\")","v":""},{"$nulls":7},{"$f":"IFERROR(__xludf.DUMMYFUNCTION(\"\"\"COMPUTED_VALUE\"\"\"),\"Art :         \")","v":"Art :         "},{"$f":"IFERROR(__xludf.DUMMYFUNCTION(\"\"\"COMPUTED_VALUE\"\"\"),\"Süddeutsche EM Männer Frauen 2024\")","v":"Süddeutsche EM Männer Frauen 2024"}]
[{"$nulls":8},{"$f":"IFERROR(__xludf.DUMMYFUNCTION(\"\"\"COMPUTED_VALUE\"\"\"),\"Ort :\")","v":"Ort :"},{"$f":"IFERROR(__xludf.DUMMYFUNCTION(\"\"\"COMPUTED_VALUE\"\"\"),\"München\")","v":"München"}]
[{"$nulls":8},{"$f":"IFERROR(__xludf.DUMMYFUNCTION(\"\"\"COMPUTED_VALUE\"\"\"),\"Datum :  \")","v":"Datum :  "},{"$f":"IFERROR(__xludf.DUMMYFUNCTION(\"\"\"COMPUTED_VALUE\"\"\"),45556.2916666666)","v":"2024-09-21T07:00:00"}]
[{"$f":"IFERROR(__xludf.DUMMYFUNCTION(\"\"\"COMPUTED_VALUE\"\"\"),\"Liste für 16 Teilnehmer mit doppelter Trostrunde\")","v":"Liste für 16 Teilnehmer mit doppelter Trostrunde"},{"$nulls":7},{"$f":"IFERROR(__xludf.DUMMYFUNCTION(\"\"\"COMPUTED_VALUE\"\"\"),\"Gewichtsklasse :    \")","v":"Gewichtsklasse :    "},{"$f":"IFERROR(__xludf.DUMMYFUNCTION(\"\"\"COMPUTED_VALUE\"\"\"),\"M-66KG\")","v":"M-66KG"}]
[{"$nulls":8},{"$f":"IFERROR(__xludf.DUMMYFUNCTION(\"\"\"COMPUTED_VALUE\"\"\"),\"Sportl. Leitung :    \")","v":"Sportl. Leitung :    "},{"$f":"IFERROR(__xludf.DUMMYFUNCTION(\"\"\"COMPUTED_VALUE\"\"\"),\"Emil Burock\")","v":"Emil Burock"}]
[{"$f":"IFERROR(__xludf.DUMMYFUNCTION(\"\"\"COMPUTED_VALUE\"\"\"),1)","v":1},{"$f":"IFERROR(__xludf.DUMMYFUNCTION(\"\"\"COMPUTED_VALUE\"\"\"),\"Bächle Felix\")","v":"Bächle Felix"},{"$f":"IFERROR(__xludf.DUMMYFUNCTION(\"\"\"COMPUTED_VALUE\"\"\"),\"JSC Heidelberg Rhein Neckar\")","v":"JSC Heidelberg Rhein Neckar"},{"$f":"IFERROR(__xludf.DUMMYFUNCTION(\"\"\"COMPUTED_VALUE\"\"\"),1)","v":1},{"$f":"IFERROR(__xludf.DUMMYFUNCTION(\"\"\"COMPUTED_VALUE\"\"\"),\"Bächle Felix\")","v":"Bächle Felix"},{"$f":"IFERROR(__xludf.DUMMYFUNCTION(\"\"\"COMPUTED_VALUE\"\"\"),\"JSC Heidelberg Rhein Neckar\")","v":"JSC Heidelberg Rhein Neckar"}]
[{"$f":"IFERROR(__xludf.DUMMYFUNCTION(\"\"\"COMPUTED_VALUE\"\"\"),9)","v":9},{"$f":"IFERROR(__xludf.DUMMYFUNCTION(\"\"\"COMPUTED_VALUE\"\"\"),\"Sat Yusuf\")","v":"Sat Yusuf"},{"$f":"IFERROR(__xludf.DUMMYFUNCTION(\"\"\"COMPUTED_VALUE\"\"\"),\"1. Judo-Club Münchberg\")","v":"1. Judo-Club Münchberg"},{"$f":"IFERROR(__xludf.DUMMYFUNCTION(\"\"\"COMPUTED_VALUE\"\"\"),\"w\")","v":"w"},null,{"$f":"IFERROR(__xludf.DUMMYFUNCTION(\"\"\"COMPUTED_VALUE\"\"\"),9)","v":9},{"$f":"IFERROR(__xludf.DUMMYFUNCTION(\"\"\"COMPUTED_VALUE\"\"\"),\"Bächle Felix\")","v":"Bächle Felix"},{"$f":"IFERROR(__xludf.DUMMYFUNCTION(\"\"\"COMPUTED_VALUE\"\"\"),\"JSC Heidelberg Rhein Neckar\")","v":"JSC Heidelberg Rhein Neckar"}]
[]
[{"$f":"IFERROR(__xludf.DUMMYFUNCTION(\"\"\"COMPUTED_VALUE\"\"\"),5)","v":5},{"$f":"IFERROR(__xludf.DUMMYFUNCTION(\"\"\"COMPUTED_VALUE\"\"\"),\"Malik Patrick\")","v":"Malik Patrick"},{"$f":"IFERROR(__xludf.DUMMYFUNCTION(\"\"\"COMPUTED_VALUE\"\"\"),\"TSV Dachau\")","v":"TSV Dachau"},{"$f":"IFERROR(__xludf.DUMMYFUNCTION(\"\"\"COMPUTED_VALUE\"\"\"),2)","v":2},{"$f":"IFERROR(__xludf.DUMMYFUNCTION(\"\"\"COMPUTED_VALUE\"\"\"),\"Malik Patrick\")","v":"Malik Patrick"},{"$f":"IFERROR(__xludf.DUMMYFUNCTION(\"\"\"COMPUTED_VALUE\"\"\"),\"w\")","v":"w"}]
[{"$f":"IFERROR(__xludf.DUMMYFUNCTION(\"\"\"COMPUTED_VALUE\"\"\"),13)","v":13},{"$f":"IFERROR(__xludf.DUMMYFUNCTION(\"\"\"COMPUTED_VALUE\"\"\"),\"---\")","v":"---"},{"$f":"IFERROR(__xludf.DUMMYFUNCTION(\"\"\"COMPUTED_VALUE\"\"\"),\"---\")","v":"---"},{"$f":"IFERROR(__xludf.DUMMYFUNCTION(\"\"\"COMPUTED_VALUE\"\"\"),\"w\")","v":"w"},null,{"$f":"IFERROR(__xludf.DUMMYFUNCTION(\"\"\"COMPUTED_VALUE\"\"\"),\"TSV Dachau\")","v":"TSV Dachau"},null,{"$f":"IFERROR(__xludf.DUMMYFUNCTION(\"\"\"COMPUTED_VALUE\"\"\"),21)","v":21},{"$f":"IFERROR(__xludf.DUMMYFUNCTION(\"\"\"COMPUTED_VALUE\"\"\"),\"Bächle Felix\")","v":"Bächle Felix"},{"$f":"IFERROR(__xludf.DUMMYFUNCTION(\"\"\"COMPUTED_VALUE\"\"\"),\"JSC Heidelberg Rhein Neckar\")","v":"JSC Heidelberg Rhein Neckar"}]
[]
[{"$f":"IFERROR(__xludf.DUMMYFUNCTION(\"\"\"COMPUTED_VALUE\"\"\"),3)","v":3},{"$f":"IFERROR(__xludf.DUMMYFUNCTION(\"\"\"COMPUTED_VALUE\"\"\"),\"Kern Mauro\")","v":"Kern Mauro"},{"$f":"IFERROR(__xludf.DUMMYFUNCTION(\"\"\"COMPUTED_VALUE\"\"\"),\"TSV Unterhaching\")","v":"TSV Unterhaching"},{"$f":"IFERROR(__xludf.DUMMYFUNCTION(\"\"\"COMPUTED_VALUE\"\"\"),3)","v":3},{"$f":"IFERROR(__xludf.DUMMYFUNCTION(\"\"\"COMPUTED_VALUE\"\"\"),\"Kern Mauro\")","v":"Kern Mauro"},{"$f":"IFERROR(__xludf.DUMMYFUNCTION(\"\"\"COMPUTED_VALUE\"\"\"),\"TSV Unterhaching\")","v":"TSV Unterhaching"}]
[{"$f":"IFERROR(__xludf.DUMMYFUNCTION(\"\"\"COMPUTED_VALUE\"\"\"),11)","v":11},{"$f":"IFERROR(__xludf.DUMMYFUNCTION(\"\"\"COMPUTED_VALUE\"\"\"),\"Semeria Luca\")","v":"Semeria Luca"},{"$f":"IFERROR(__xludf.DUMMYFUNCTION(\"\"\"COMPUTED_VALUE\"\"\"),\"Samurai München e.V.\")","v":"Samurai München e.V."},{"$f":"IFERROR(__xludf.DUMMYFUNCTION(\"\"\"COMPUTED_VALUE\"\"\"),\"w\")","v":"w"},null,{"$f":"IFERROR(__xludf.DUMMYFUNCTION(\"\"\"COMPUTED_VALUE\"\"\"),10)","v":10},{"$f":"IFERROR(__xludf.DUMMYFUNCTION(\"\"\"COMPUTED_VALUE\"\"\"),\"Michelfeit Julian \")","v":"Michelfeit Julian "},{"$f":"IFERROR(__xludf.DUMMYFUNCTION(\"\"\"COMPUTED_VALUE\"\"\"),\"w\")","v":"w"}]
[]
[{"$f":"IFERROR(__xludf.DUMMYFUNCTION(\"\"\"COMPUTED_VALUE\"\"\"),7)","v":7},{"$f":"IFERROR(__xludf.DUMMYFUNCTION(\"\"\"COMPUTED_VALUE\"\"\"),\"Michelfeit Julian \")","v":"Michelfeit Julian "},{"$f":"IFERROR(__xludf.DUMMYFUNCTION(\"\"\"COMPUTED_VALUE\"\"\"),\"TG Schweinfurt\")","v":"TG Schweinfurt"},{"$f":"IFERROR(__xludf.DUMMYFUNCTION(\"\"\"COMPUTED_VALUE\"\"\"),4)","v":4},{"$f":"IFERROR(__xludf.DUMMYFUNCTION(\"\"\"COMPUTED_VALUE\"\"\"),\"Michelfeit Julian \")","v":"Michelfeit Julian "},{"$f":"IFERROR(__xludf.DUMMYFUNCTION(\"\"\"COMPUTED_VALUE\"\"\"),\"b\")","v":"b"},null,{"$f":"IFERROR(__xludf.DUMMYFUNCTION(\"\"\"COMPUTED_VALUE\"\"\"),\"TG Schweinfurt\")","v":"TG Schweinfurt"}]
[{"$f":"IFERROR(__xludf.DUMMYFUNCTION(\"\"\"COMPUTED_VALUE\"\"\"),15)","v":15},{"$f":"IFERROR(__xludf.DUMMYFUNCTION(\"\"\"COMPUTED_VALUE\"\"\"),\"---\")","v":"---"},{"$f":"IFERROR(__xludf.DUMMYFUNCTION(\"\"\"COMPUTED_VALUE\"\"\"),\"---\")","v":"---"},{"$f":"IFERROR(__xludf.DUMMYFUNCTION(\"\"\"COMPUTED_VALUE\"\"\"),\"w\")","v":"w"},null,{"$f":"IFERROR(__xludf.DUMMYFUNCTION(\"\"\"COMPUTED_VALUE\"\"\"),\"TG Schweinfurt\")","v":"TG Schweinfurt"},null,null,null,{"$f":"IFERROR(__xludf.DUMMYFUNCTION(\"\"\"COMPUTED_VALUE\"\"\"),27)","v":27},{"$f":"IFERROR(__xludf.DUMMYFUNCTION(\"\"\"COMPUTED_VALUE\"\"\"),\"Bächle Felix\")","v":"Bächle Felix"}]
[]
[{"$f":"IFERROR(__xludf.DUMMYFUNCTION(\"\"\"COMPUTED_VALUE\"\"\"),2)","v":2},{"$f":"IFERROR(__xludf.DUMMYFUNCTION(\"\"\"COMPUTED_VALUE\"\"\"),\"Holdermüller  Silas\")","v":"Holdermüller  Silas"},{"$f":"IFERROR(__xludf.DUMMYFUNCTION(\"\"\"COMPUTED_VALUE\"\"\"),\"TV Mosbach\")","v":"TV Mosbach"},{"$f":"IFERROR(__xludf.DUMMYFUNCTION(\"\"\"COMPUTED_VALUE\"\"\"),5)","v":5},{"$f":"IFERROR(__xludf.DUMMYFUNCTION(\"\"\"COMPUTED_VALUE\"\"\"),\"Schubert Timothy\")","v":"Schubert Timothy"},{"$f":"IFERROR(__xludf.DUMMYFUNCTION(\"\"\"COMPUTED_VALUE\"\"\"),\"BAC 55 Hockenheim\")","v":"BAC 55 Hockenheim"},{"$nulls":5},{"$f":"IFERROR(__xludf.DUMMYFUNCTION(\"\"\"COMPUTED_VALUE\"\"\"),\"1.\")","v":"1."}]
[{"$f":"IFERROR(__xludf.DUMMYFUNCTION(\"\"\"COMPUTED_VALUE\"\"\"),10)","v":10},{"$f":"IFERROR(__xludf.DUMMYFUNCTION(\"\"\"COMPUTED_VALUE\"\"\"),\"Schubert Timothy\")","v":"Schubert Timothy"},{"$f":"IFERROR(__xludf.DUMMYFUNCTION(\"\"\"COMPUTED_VALUE\"\"\"),\"BAC 55 Hockenheim\")","v":"BAC 55 Hockenheim"},{"$f":"IFERROR(__xludf.DUMMYFUNCTION(\"\"\"COMPUTED_VALUE\"\"\"),\"b\")","v":"b"},null,{"$f":"IFERROR(__xludf.DUMMYFUNCTION(\"\"\"COMPUTED_VALUE\"\"\"),11)","v":11},{"$f":"IFERROR(__xludf.DUMMYFUNCTION(\"\"\"COMPUTED_VALUE\"\"\"),\"Mayr Jonas\")","v":"Mayr Jonas"},{"$f":"IFERROR(__xludf.DUMMYFUNCTION(\"\"\"COMPUTED_VALUE\"\"\"),\"TSV Abensberg\")","v":"TSV Abensberg"}]
[]
[{"$f":"IFERROR(__xludf.DUMMYFUNCTION(\"\"\"COMPUTED_VALUE\"\"\"),6)","v":6},{"$f":"IFERROR(__xludf.DUMMYFUNCTION(\"\"\"COMPUTED_VALUE\"\"\"),\"Mayr Jonas\")","v":"Mayr Jonas"},{"$f":"IFERROR(__xludf.DUMMYFUNCTION(\"\"\"COMPUTED_VALUE\"\"\"),\"TSV Abensberg\")","v":"TSV Abensberg"},{"$f":"IFERROR(__xludf.DUMMYFUNCTION(\"\"\"COMPUTED_VALUE\"\"\"),6)","v":6},{"$f":"IFERROR(__xludf.DUMMYFUNCTION(\"\"\"COMPUTED_VALUE\"\"\"),\"Mayr Jonas\")","v":"Mayr Jonas"},{"$f":"IFERROR(__xludf.DUMMYFUNCTION(\"\"\"COMPUTED_VALUE\"\"\"),\"b\")","v":"b"}]
[{"$f":"IFERROR(__xludf.DUMMYFUNCTION(\"\"\"COMPUTED_VALUE\"\"\"),14)","v":14},{"$f":"IFERROR(__xludf.DUMMYFUNCTION(\"\"\"COMPUTED_VALUE\"\"\"),\"---\")","v":"---"},{"$f":"IFERROR(__xludf.DUMMYFUNCTION(\"\"\"COMPUTED_VALUE\"\"\"),\"---\")","v":"---"},{"$f":"IFERROR(__xludf.DUMMYFUNCTION(\"\"\"COMPUTED_VALUE\"\"\"),\"w\")","v":"w"},null,{"$f":"IFERROR(__xludf.DUMMYFUNCTION(\"\"\"COMPUTED_VALUE\"\"\"),\"TSV Abensberg\")","v":"TSV Abensberg"},null,{"$f":"IFERROR(__xludf.DUMMYFUNCTION(\"\"\"COMPUTED_VALUE\"\"\"),22)","v":22},{"$f":"IFERROR(__xludf.DUMMYFUNCTION(\"\"\"COMPUTED_VALUE\"\"\"),\"Mayr Jonas\")","v":"Mayr Jonas"},{"$f":"IFERROR(__xludf.DUMMYFUNCTION(\"\"\"COMPUTED_VALUE\"\"\"),\"w\")","v":"w"}]
[]
[{"$f":"IFERROR(__xludf.DUMMYFUNCTION(\"\"\"COMPUTED_VALUE\"\"\"),4)","v":4},{"$f":"IFERROR(__xludf.DUMMYFUNCTION(\"\"\"COMPUTED_VALUE\"\"\"),\"Le Doan Duy Ky\")","v":"Le Doan Duy Ky"},{"$f":"IFERROR(__xludf.DUMMYFUNCTION(\"\"\"COMPUTED_VALUE\"\"\"),\"TV Erlangen\")","v":"TV Erlangen"},{"$f":"IFERROR(__xludf.DUMMYFUNCTION(\"\"\"COMPUTED_VALUE\"\"\"),7)","v":7},{"$f":"IFERROR(__xludf.DUMMYFUNCTION(\"\"\"COMPUTED_VALUE\"\"\"),\"Le Doan Duy Ky\")","v":"Le Doan Duy Ky"},{"$f":"IFERROR(__xludf.DUMMYFUNCTION(\"\"\"COMPUTED_VALUE\"\"\"),\"TV Erlangen\")","v":"TV Erlangen"},null,null,null,{"$f":"IFERROR(__xludf.DUMMYFUNCTION(\"\"\"COMPUTED_VALUE\"\"\"),\"TSV Abensberg\")","v":"TSV Abensberg"}]
[{"$f":"IFERROR(__xludf.DUMMYFUNCTION(\"\"\"COMPUTED_VALUE\"\"\"),12)","v":12},{"$f":"IFERROR(__xludf.DUMMYFUNCTION(\"\"\"COMPUTED_VALUE\"\"\"),\"Wildpreth  Lukas \")","v":"Wildpreth  Lukas "},{"$f":"IFERROR(__xludf.DUMMYFUNCTION(\"\"\"COMPUTED_VALUE\"\"\"),\"JSV Villingen\")","v":"JSV Villingen"},{"$f":"IFERROR(__xludf.DUMMYFUNCTION(\"\"\"COMPUTED_VALUE\"\"\"),\"w\")","v":"w"},null,{"$f":"IFERROR(__xludf.DUMMYFUNCTION(\"\"\"COMPUTED_VALUE\"\"\"),12)","v":12},{"$f":"IFERROR(__xludf.DUMMYFUNCTION(\"\"\"COMPUTED_VALUE\"\"\"),\"Le Doan Duy Ky\")","v":"Le Doan Duy Ky"},{"$f":"IFERROR(__xludf.DUMMYFUNCTION(\"\"\"COMPUTED_VALUE\"\"\"),\"w\")","v":"w"},null,{"$f":"IFERROR(__xludf.DUMMYFUNCTION(\"\"\"COMPUTED_VALUE\"\"\"),\"1.\")","v":"1."},{"$f":"IFERROR(__xludf.DUMMYFUNCTION(\"\"\"COMPUTED_VALUE\"\"\"),\"Bächle Felix\")","v":"Bächle Felix"}]
[{"$nulls":10},{"$f":"IFERROR(__xludf.DUMMYFUNCTION(\"\"\"COMPUTED_VALUE\"\"\"),\"Mayr Jonas\")","v":"Mayr Jonas"}]
[{"$f":"IFERROR(__xludf.DUMMYFUNCTION(\"\"\"COMPUTED_VALUE\"\"\"),8)","v":8},{"$f":"IFERROR(__xludf.DUMMYFUNCTION(\"\"\"COMPUTED_VALUE\"\"\"),\"Randow Clemens\")","v":"Randow Clemens"},{"$f":"IFERROR(__xludf.DUMMYFUNCTION(\"\"\"COMPUTED_VALUE\"\"\"),\"MTV München\")","v":"MTV München"},{"$f":"IFERROR(__xludf.DUMMYFUNCTION(\"\"\"COMPUTED_VALUE\"\"\"),8)","v":8},{"$f":"IFERROR(__xludf.DUMMYFUNCTION(\"\"\"COMPUTED_VALUE\"\"\"),\"Randow Clemens\")","v":"Randow Clemens"},{"$f":"IFERROR(__xludf.DUMMYFUNCTION(\"\"\"COMPUTED_VALUE\"\"\"),\"w\")","v":"w"},null,{"$f":"IFERROR(__xludf.DUMMYFUNCTION(\"\"\"COMPUTED_VALUE\"\"\"),\"TV Erlangen\")","v":"TV Erlangen"},null,{"$f":"IFERROR(__xludf.DUMMYFUNCTION(\"\"\"COMPUTED_VALUE\"\"\"),\"2.\")","v":"2."},{"$f":"IFERROR(__xludf.DUMMYFUNCTION(\"\"\"COMPUTED_VALUE\"\"\"),\"Mayr Jonas\")","v":"Mayr Jonas"}]
[{"$f":"IFERROR(__xludf.DUMMYFUNCTION(\"\"\"COMPUTED_VALUE\"\"\"),16)","v":16},{"$f":"IFERROR(__xludf.DUMMYFUNCTION(\"\"\"COMPUTED_VALUE\"\"\"),\"---\")","v":"---"},{"$f":"IFERROR(__xludf.DUMMYFUNCTION(\"\"\"COMPUTED_VALUE\"\"\"),\"---\")","v":"---"},{"$f":"IFERROR(__xludf.DUMMYFUNCTION(\"\"\"COMPUTED_VALUE\"\"\"),\"w\")","v":"w"},null,{"$f":"IFERROR(__xludf.DUMMYFUNCTION(\"\"\"COMPUTED_VALUE\"\"\"),\"MTV München\")","v":"MTV München"},null,null,null,{"$f":"IFERROR(__xludf.DUMMYFUNCTION(\"\"\"COMPUTED_VALUE\"\"\"),\"3.\")","v":"3."},{"$f":"IFERROR(__xludf.DUMMYFUNCTION(\"\"\"COMPUTED_VALUE\"\"\"),\"Michelfeit Julian \")","v":"Michelfeit Julian "}]
[{"$nulls":9},{"$f":"IFERROR(__xludf.DUMMYFUNCTION(\"\"\"COMPUTED_VALUE\"\"\"),\"3.\")","v":"3."},{"$f":"IFERROR(__xludf.DUMMYFUNCTION(\"\"\"COMPUTED_VALUE\"\"\"),\"Le Doan Duy Ky\")","v":"Le Doan Duy Ky"}]
[]
[{"$nulls":9},{"$f":"IFERROR(__xludf.DUMMYFUNCTION(\"\"\"COMPUTED_VALUE\"\"\"),\"5.\")","v":"5."},{"$f":"IFERROR(__xludf.DUMMYFUNCTION(\"\"\"COMPUTED_VALUE\"\"\"),\"Sat Yusuf\")","v":"Sat Yusuf"}]
[{"$nulls":9},{"$f":"IFERROR(__xludf.DUMMYFUNCTION(\"\"\"COMPUTED_VALUE\"\"\"),\"5.\")","v":"5."},{"$f":"IFERROR(__xludf.DUMMYFUNCTION(\"\"\"COMPUTED_VALUE\"\"\"),\"Kern Mauro\")","v":"Kern Mauro"}]
[{"$f":"IFERROR(__xludf.DUMMYFUNCTION(\"\"\"COMPUTED_VALUE\"\"\"),1)","v":1},{"$f":"IFERROR(__xludf.DUMMYFUNCTION(\"\"\"COMPUTED_VALUE\"\"\"),\"Sat Yusuf\")","v":"Sat Yusuf"},{"$f":"IFERROR(__xludf.DUMMYFUNCTION(\"\"\"COMPUTED_VALUE\"\"\"),\"1. Judo-Club Münchberg\")","v":"1. Judo-Club Münchberg"},{"$f":"IFERROR(__xludf.DUMMYFUNCTION(\"\"\"COMPUTED_VALUE\"\"\"),13)","v":13},{"$f":"IFERROR(__xludf.DUMMYFUNCTION(\"\"\"COMPUTED_VALUE\"\"\"),\"Sat Yusuf\")","v":"Sat Yusuf"},{"$f":"IFERROR(__xludf.DUMMYFUNCTION(\"\"\"COMPUTED_VALUE\"\"\"),\"1. Judo-Club Münchberg\")","v":"1. Judo-Club Münchberg"},null,null,null,{"$f":"IFERROR(__xludf.DUMMYFUNCTION(\"\"\"COMPUTED_VALUE\"\"\"),\"7.\")","v":"7."},{"$f":"IFERROR(__xludf.DUMMYFUNCTION(\"\"\"COMPUTED_VALUE\"\"\"),\"Semeria Luca\")","v":"Semeria Luca"}]
[{"$f":"IFERROR(__xludf.DUMMYFUNCTION(\"\"\"COMPUTED_VALUE\"\"\"),2)","v":2},{"$f":"IFERROR(__xludf.DUMMYFUNCTION(\"\"\"COMPUTED_VALUE\"\"\"),\"---\")","v":"---"},{"$f":"IFERROR(__xludf.DUMMYFUNCTION(\"\"\"COMPUTED_VALUE\"\"\"),\"---\")","v":"---"},{"$f":"IFERROR(__xludf.DUMMYFUNCTION(\"\"\"COMPUTED_VALUE\"\"\"),\"w\")","v":"w"},null,{"$f":"IFERROR(__xludf.DUMMYFUNCTION(\"\"\"COMPUTED_VALUE\"\"\"),17)","v":17},{"$f":"IFERROR(__xludf.DUMMYFUNCTION(\"\"\"COMPUTED_VALUE\"\"\"),\"Sat Yusuf\")","v":"Sat Yusuf"},{"$f":"IFERROR(__xludf.DUMMYFUNCTION(\"\"\"COMPUTED_VALUE\"\"\"),\"1. Judo-Club Münchberg\")","v":"1. Judo-Club Münchberg"},null,{"$f":"IFERROR(__xludf.DUMMYFUNCTION(\"\"\"COMPUTED_VALUE\"\"\"),\"7.\")","v":"7."},{"$f":"IFERROR(__xludf.DUMMYFUNCTION(\"\"\"COMPUTED_VALUE\"\"\"),\"Malik Patrick\")","v":"Malik Patrick"}]
[null,null,null,{"$f":"IFERROR(__xludf.DUMMYFUNCTION(\"\"\"COMPUTED_VALUE\"\"\"),11)","v":11},{"$f":"IFERROR(__xludf.DUMMYFUNCTION(\"\"\"COMPUTED_VALUE\"\"\"),\"Schubert Timothy\")","v":"Schubert Timothy"},{"$f":"IFERROR(__xludf.DUMMYFUNCTION(\"\"\"COMPUTED_VALUE\"\"\"),\"w\")","v":"w"},null,null,{"$f":"IFERROR(__xludf.DUMMYFUNCTION(\"\"\"COMPUTED_VALUE\"\"\"),\"Sat Yusuf\")","v":"Sat Yusuf"},{"$f":"IFERROR(__xludf.DUMMYFUNCTION(\"\"\"COMPUTED_VALUE\"\"\"),\"1. Judo-Club Münchberg\")","v":"1. Judo-Club Münchberg"}]
[{"$nulls":5},{"$f":"IFERROR(__xludf.DUMMYFUNCTION(\"\"\"COMPUTED_VALUE\"\"\"),\"BAC 55 Hockenheim\")","v":"BAC 55 Hockenheim"}]
[{"$f":"IFERROR(__xludf.DUMMYFUNCTION(\"\"\"COMPUTED_VALUE\"\"\"),3)","v":3},{"$f":"IFERROR(__xludf.DUMMYFUNCTION(\"\"\"COMPUTED_VALUE\"\"\"),\"Semeria Luca\")","v":"Semeria Luca"},{"$f":"IFERROR(__xludf.DUMMYFUNCTION(\"\"\"COMPUTED_VALUE\"\"\"),\"Samurai München e.V.\")","v":"Samurai München e.V."},{"$f":"IFERROR(__xludf.DUMMYFUNCTION(\"\"\"COMPUTED_VALUE\"\"\"),14)","v":14},{"$f":"IFERROR(__xludf.DUMMYFUNCTION(\"\"\"COMPUTED_VALUE\"\"\"),\"Semeria Luca\")","v":"Semeria Luca"},{"$f":"IFERROR(__xludf.DUMMYFUNCTION(\"\"\"COMPUTED_VALUE\"\"\"),\"Samurai München e.V.\")","v":"Samurai München e.V."},null,{"$f":"IFERROR(__xludf.DUMMYFUNCTION(\"\"\"COMPUTED_VALUE\"\"\"),23)","v":23}]
[{"$f":"IFERROR(__xludf.DUMMYFUNCTION(\"\"\"COMPUTED_VALUE\"\"\"),4)","v":4},{"$f":"IFERROR(__xludf.DUMMYFUNCTION(\"\"\"COMPUTED_VALUE\"\"\"),\"---\")","v":"---"},{"$f":"IFERROR(__xludf.DUMMYFUNCTION(\"\"\"COMPUTED_VALUE\"\"\"),\"---\")","v":"---"},{"$f":"IFERROR(__xludf.DUMMYFUNCTION(\"\"\"COMPUTED_VALUE\"\"\"),\"w\")","v":"w"},null,{"$f":"IFERROR(__xludf.DUMMYFUNCTION(\"\"\"COMPUTED_VALUE\"\"\"),18)","v":18},{"$f":"IFERROR(__xludf.DUMMYFUNCTION(\"\"\"COMPUTED_VALUE\"\"\"),\"Semeria Luca\")","v":"Semeria Luca"},{"$f":"IFERROR(__xludf.DUMMYFUNCTION(\"\"\"COMPUTED_VALUE\"\"\"),\"w\")","v":"w"},null,{"$f":"IFERROR(__xludf.DUMMYFUNCTION(\"\"\"COMPUTED_VALUE\"\"\"),25)","v":25},{"$f":"IFERROR(__xludf.DUMMYFUNCTION(\"\"\"COMPUTED_VALUE\"\"\"),\"Michelfeit Julian \")","v":"Michelfeit Julian "}]
[null,null,null,{"$f":"IFERROR(__xludf.DUMMYFUNCTION(\"\"\"COMPUTED_VALUE\"\"\"),12)","v":12},{"$f":"IFERROR(__xludf.DUMMYFUNCTION(\"\"\"COMPUTED_VALUE\"\"\"),\"Randow Clemens\")","v":"Randow Clemens"},{"$f":"IFERROR(__xludf.DUMMYFUNCTION(\"\"\"COMPUTED_VALUE\"\"\"),\"w\")","v":"w"},null,{"$f":"IFERROR(__xludf.DUMMYFUNCTION(\"\"\"COMPUTED_VALUE\"\"\"),\"Samurai München e.V.\")","v":"Samurai München e.V."},null,null,null,{"$f":"IFERROR(__xludf.DUMMYFUNCTION(\"\"\"COMPUTED_VALUE\"\"\"),\"3.\")","v":"3."}]
[{"$nulls":5},{"$f":"IFERROR(__xludf.DUMMYFUNCTION(\"\"\"COMPUTED_VALUE\"\"\"),\"MTV München\")","v":"MTV München"},null,{"$f":"IFERROR(__xludf.DUMMYFUNCTION(\"\"\"COMPUTED_VALUE\"\"\"),21)","v":21},{"$f":"IFERROR(__xludf.DUMMYFUNCTION(\"\"\"COMPUTED_VALUE\"\"\"),\"Michelfeit Julian \")","v":"Michelfeit Julian "},{"$f":"IFERROR(__xludf.DUMMYFUNCTION(\"\"\"COMPUTED_VALUE\"\"\"),\"b\")","v":"b"}]
[{"$f":"IFERROR(__xludf.DUMMYFUNCTION(\"\"\"COMPUTED_VALUE\"\"\"),5)","v":5},{"$f":"IFERROR(__xludf.DUMMYFUNCTION(\"\"\"COMPUTED_VALUE\"\"\"),\"Holdermüller  Silas\")","v":"Holdermüller  Silas"},{"$f":"IFERROR(__xludf.DUMMYFUNCTION(\"\"\"COMPUTED_VALUE\"\"\"),\"TV Mosbach\")","v":"TV Mosbach"},{"$f":"IFERROR(__xludf.DUMMYFUNCTION(\"\"\"COMPUTED_VALUE\"\"\"),15)","v":15},{"$f":"IFERROR(__xludf.DUMMYFUNCTION(\"\"\"COMPUTED_VALUE\"\"\"),\"Holdermüller  Silas\")","v":"Holdermüller  Silas"},{"$f":"IFERROR(__xludf.DUMMYFUNCTION(\"\"\"COMPUTED_VALUE\"\"\"),\"TV Mosbach\")","v":"TV Mosbach"},null,null,null,{"$f":"IFERROR(__xludf.DUMMYFUNCTION(\"\"\"COMPUTED_VALUE\"\"\"),\"TG Schweinfurt\")","v":"TG Schweinfurt"}]
[{"$f":"IFERROR(__xludf.DUMMYFUNCTION(\"\"\"COMPUTED_VALUE\"\"\"),6)","v":6},{"$f":"IFERROR(__xludf.DUMMYFUNCTION(\"\"\"COMPUTED_VALUE\"\"\"),\"---\")","v":"---"},{"$f":"IFERROR(__xludf.DUMMYFUNCTION(\"\"\"COMPUTED_VALUE\"\"\"),\"---\")","v":"---"},{"$f":"IFERROR(__xludf.DUMMYFUNCTION(\"\"\"COMPUTED_VALUE\"\"\"),\"w\")","v":"w"},null,{"$f":"IFERROR(__xludf.DUMMYFUNCTION(\"\"\"COMPUTED_VALUE\"\"\"),19)","v":19},{"$f":"IFERROR(__xludf.DUMMYFUNCTION(\"\"\"COMPUTED_VALUE\"\"\"),\"Malik Patrick\")","v":"Malik Patrick"},{"$f":"IFERROR(__xludf.DUMMYFUNCTION(\"\"\"COMPUTED_VALUE\"\"\"),\"TSV Dachau\")","v":"TSV Dachau"}]
[null,null,null,{"$f":"IFERROR(__xludf.DUMMYFUNCTION(\"\"\"COMPUTED_VALUE\"\"\"),9)","v":9},{"$f":"IFERROR(__xludf.DUMMYFUNCTION(\"\"\"COMPUTED_VALUE\"\"\"),\"Malik Patrick\")","v":"Malik Patrick"},{"$f":"IFERROR(__xludf.DUMMYFUNCTION(\"\"\"COMPUTED_VALUE\"\"\"),\"b\")","v":"b"},null,null,{"$f":"IFERROR(__xludf.DUMMYFUNCTION(\"\"\"COMPUTED_VALUE\"\"\"),\"Kern Mauro\")","v":"Kern Mauro"},{"$f":"IFERROR(__xludf.DUMMYFUNCTION(\"\"\"COMPUTED_VALUE\"\"\"),\"TSV Unterhaching\")","v":"TSV Unterhaching"}]
[{"$nulls":5},{"$f":"IFERROR(__xludf.DUMMYFUNCTION(\"\"\"COMPUTED_VALUE\"\"\"),\"TSV Dachau\")","v":"TSV Dachau"}]
[{"$f":"IFERROR(__xludf.DUMMYFUNCTION(\"\"\"COMPUTED_VALUE\"\"\"),7)","v":7},{"$f":"IFERROR(__xludf.DUMMYFUNCTION(\"\"\"COMPUTED_VALUE\"\"\"),\"Wildpreth  Lukas \")","v":"Wildpreth  Lukas "},{"$f":"IFERROR(__xludf.DUMMYFUNCTION(\"\"\"COMPUTED_VALUE\"\"\"),\"JSV Villingen\")","v":"JSV Villingen"},{"$f":"IFERROR(__xludf.DUMMYFUNCTION(\"\"\"COMPUTED_VALUE\"\"\"),16)","v":16},{"$f":"IFERROR(__xludf.DUMMYFUNCTION(\"\"\"COMPUTED_VALUE\"\"\"),\"Wildpreth  Lukas \")","v":"Wildpreth  Lukas "},{"$f":"IFERROR(__xludf.DUMMYFUNCTION(\"\"\"COMPUTED_VALUE\"\"\"),\"JSV Villingen\")","v":"JSV Villingen"},null,{"$f":"IFERROR(__xludf.DUMMYFUNCTION(\"\"\"COMPUTED_VALUE\"\"\"),24)","v":24}]
[{"$f":"IFERROR(__xludf.DUMMYFUNCTION(\"\"\"COMPUTED_VALUE\"\"\"),8)","v":8},{"$f":"IFERROR(__xludf.DUMMYFUNCTION(\"\"\"COMPUTED_VALUE\"\"\"),\"---\")","v":"---"},{"$f":"IFERROR(__xludf.DUMMYFUNCTION(\"\"\"COMPUTED_VALUE\"\"\"),\"---\")","v":"---"},{"$f":"IFERROR(__xludf.DUMMYFUNCTION(\"\"\"COMPUTED_VALUE\"\"\"),\"w\")","v":"w"},null,{"$f":"IFERROR(__xludf.DUMMYFUNCTION(\"\"\"COMPUTED_VALUE\"\"\"),20)","v":20},{"$f":"IFERROR(__xludf.DUMMYFUNCTION(\"\"\"COMPUTED_VALUE\"\"\"),\"Kern Mauro\")","v":"Kern Mauro"},{"$f":"IFERROR(__xludf.DUMMYFUNCTION(\"\"\"COMPUTED_VALUE\"\"\"),\"b\")","v":"b"},null,{"$f":"IFERROR(__xludf.DUMMYFUNCTION(\"\"\"COMPUTED_VALUE\"\"\"),26)","v":26},{"$f":"IFERROR(__xludf.DUMMYFUNCTION(\"\"\"COMPUTED_VALUE\"\"\"),\"Le Doan Duy Ky\")","v":"Le Doan Duy Ky"}]
[null,null,null,{"$f":"IFERROR(__xludf.DUMMYFUNCTION(\"\"\"COMPUTED_VALUE\"\"\"),10)","v":10},{"$f":"IFERROR(__xludf.DUMMYFUNCTION(\"\"\"COMPUTED_VALUE\"\"\"),\"Kern Mauro\")","v":"Kern Mauro"},{"$f":"IFERROR(__xludf.DUMMYFUNCTION(\"\"\"COMPUTED_VALUE\"\"\"),\"b\")","v":"b"},null,{"$f":"IFERROR(__xludf.DUMMYFUNCTION(\"\"\"COMPUTED_VALUE\"\"\"),\"TSV Unterhaching\")","v":"TSV Unterhaching"},null,null,null,{"$f":"IFERROR(__xludf.DUMMYFUNCTION(\"\"\"COMPUTED_VALUE\"\"\"),\"3.\")","v":"3."}]
[{"$nulls":5},{"$f":"IFERROR(__xludf.DUMMYFUNCTION(\"\"\"COMPUTED_VALUE\"\"\"),\"TSV Unterhaching\")","v":"TSV Unterhaching"},null,{"$f":"IFERROR(__xludf.DUMMYFUNCTION(\"\"\"COMPUTED_VALUE\"\"\"),22)","v":22},{"$f":"IFERROR(__xludf.DUMMYFUNCTION(\"\"\"COMPUTED_VALUE\"\"\"),\"Le Doan Duy Ky\")","v":"Le Doan Duy Ky"},{"$f":"IFERROR(__xludf.DUMMYFUNCTION(\"\"\"COMPUTED_VALUE\"\"\"),\"b\")","v":"b"}]
[{"$nulls":9},{"$f":"IFERROR(__xludf.DUMMYFUNCTION(\"\"\"COMPUTED_VALUE\"\"\"),\"TV Erlangen\")","v":"TV Erlangen"}]